bitfinex/quotes_ETHUSD_20251120
["timestamp","ask_amount","ask_price","bid_price","bid_amount"]
[1763656614836,0.4789,2887.0,2885.1,3.46608436]
[1763656615035,0.4789,2887.0,2885.3,0.405504]
[1763656615592,0.4789,2887.0,2885.3,0.898604]
[1763656616085,0.54346187,2886.8,2885.3,0.898604]
[1763656616244,0.4789,2886.7,2885.3,0.405504]
[1763656616443,0.4789,2886.7,2885.1,0.405504]
[1763656616645,0.54346187,2886.8,2885.3,0.405504]
[1763656616851,0.4789,2886.8,2885.3,3.4658441]
[1763656617073,0.4789,2886.8,2885.3,0.405504]
[1763656617074,0.1886,2886.7,2885.3,0.405504]
[1763656617274,0.1886,2886.7,2885.3,1.31249664]
[1763656617474,0.1886,2886.7,2885.3,0.405504]
[1763656617675,0.4789,2886.6,2885.3,1.31249664]
[1763656617951,0.54346144,2886.9,2885.5,0.405504]
[1763656618175,0.54346144,2886.9,2885.4,1.02025343]
[1763656618176,6.13397233,2886.6,2882.7,2.45957183]
[1763656618370,6.13397233,2885.6,2882.9,0.4931]
[1763656618568,0.128,2885.5,2883.1,6.13397233]
[1763656618779,0.1,2885.2,2883.2,0.4931]
[1763656619006,0.128,2885.4,2883.2,0.4931]
[1763656619290,0.1811,2885.3,2883.2,0.4931]
[1763656620290,0.128,2885.4,2883.2,3.96142376]
[1763656620490,0.128,2885.4,2883.6,0.90699264]
[1763656620866,0.128,2885.4,2883.7,0.4931]
[1763656621063,0.128,2885.4,2884.0,7.24084263]
[1763656621263,0.1811,2886.5,2884.1,1.40009264]
[1763656621525,0.1811,2886.5,2883.4,3.46802378]
[1763656621526,7.24084263,2886.3,2883.4,0.4931]
[1763656621689,0.90699264,2885.7,2882.9,0.4931]
[1763656621996,0.1811,2885.6,2882.9,0.4931]
[1763656622199,0.1811,2885.6,2883.2,0.4931]
[1763656623269,0.2811,2885.6,2883.3,0.90699264]
[1763656623468,0.1,2884.8,2883.1,0.001]
[1763656623686,0.128,2884.7,2883.1,0.001]
[1763656624061,0.1811,2884.6,2883.1,0.001]
[1763656624555,0.2811,2884.6,2883.1,0.001]
[1763656624893,0.128,2884.7,2883.1,0.001]
[1763656625671,0.1,2884.4,2883.1,0.4941]
[1763656626005,0.1,2884.4,2883.1,0.001]
[1763656626205,0.3091,2884.7,2883.1,0.4941]
[1763656626508,0.1,2884.5,2883.1,0.001]
[1763656626707,0.1,2884.4,2883.1,0.001]
[1763656626910,0.1811,2884.6,2883.1,0.001]
[1763656626911,0.128,2884.7,2883.2,0.4931]
[1763656627059,0.4091,2884.7,2883.1,0.001]
[1763656627266,0.128,2884.7,2883.2,0.4931]
[1763656627588,0.128,2884.7,2883.1,0.001]
[1763656627589,0.2811,2884.6,2883.1,0.001]
[1763656627913,0.1811,2884.6,2883.1,0.001]
[1763656628065,0.1811,2884.6,2882.9,0.4931]
[1763656628066,0.1801,2881.9,2880.0,2.10083486]
[1763656628273,0.1,2882.7,2881.0,0.48873696]
[1763656628574,0.129,2883.1,2881.1,7.27555159]
[1763656628791,0.129,2883.1,2881.0,0.48873696]
[1763656628973,0.1801,2883.0,2881.0,0.48873696]
[1763656629364,0.129,2883.1,2881.1,7.24084263]
[1763656629702,0.129,2883.1,2881.5,0.405504]
[1763656629906,0.129,2883.1,2881.7,0.405504]
[1763656630355,0.129,2883.1,2881.9,0.405504]
[1763656630461,0.129,2883.1,2881.8,0.4822]
[1763656630667,0.129,2883.1,2881.9,0.4822]
[1763656630862,0.129,2883.1,2882.0,0.03469812]
[1763656631067,0.129,2883.1,2882.1,0.4822]
[1763656631573,0.129,2883.1,2882.2,1.31249664]
[1763656631787,0.129,2883.1,2882.4,0.405504]
[1763656632127,0.129,2883.1,2882.2,0.4822]
[1763656632263,0.1282,2883.1,2882.2,0.4822]
[1763656633568,0.1282,2883.1,2881.7,1.79469664]
[1763656633765,0.1282,2883.1,2881.9,0.405504]
[1763656634211,0.1282,2883.1,2881.8,0.4822]
[1763656634212,0.1282,2883.1,2882.1,0.405504]
[1763656634723,1.08709264,2884.6,2883.0,0.1966]
[1763656634864,0.1801,2884.6,2883.1,0.887704]
[1763656635068,0.21467336,2884.5,2882.6,0.4822]
[1763656635506,0.1,2884.0,2881.8,0.90699264]
[1763656635673,0.03457336,2884.4,2882.7,0.1966]
[1763656635876,0.1801,2884.6,2882.7,0.1966]
[1763656636116,0.21467336,2884.5,2882.8,0.4822]
[1763656636407,0.21467336,2884.5,2882.2,0.4822]
[1763656636408,0.1,2884.2,2882.2,0.4822]
[1763656636562,0.03457336,2884.1,2882.2,0.4822]
[1763656636769,0.1801,2884.6,2882.2,0.4822]
[1763656637005,0.3602,2885.8,2883.7,0.405504]
[1763656637165,0.1801,2885.8,2883.9,0.405504]
[1763656637367,0.1801,2885.8,2883.8,0.73412787]
[1763656637368,0.3091,2885.7,2883.8,0.405504]
[1763656637565,0.3091,2885.7,2884.0,0.405504]
[1763656637566,0.129,2885.7,2884.0,0.405504]
[1763656637806,0.129,2885.7,2884.1,0.6788]
[1763656638191,0.1801,2885.6,2883.7,0.6788]
[1763656638495,0.1801,2885.6,2884.1,0.1966]
[1763656638496,0.03457336,2885.5,2884.1,0.1966]
[1763656638692,0.03457336,2885.5,2883.3,0.1966]
[1763656638693,7.27541599,2885.5,2883.3,0.1966]
[1763656638878,0.1,2885.3,2883.3,0.1966]
[1763656639076,0.1,2884.6,2882.6,4.14785363]
[1763656639266,0.1,2884.6,2882.7,0.41478536]
[1763656639464,0.1801,2884.6,2882.7,0.89698536]
[1763656639664,0.03457336,2884.5,2882.7,0.4822]
[1763656640007,0.129,2884.4,2883.0,0.001]
[1763656640366,0.129,2884.4,2883.1,0.4822]
[1763656641483,0.129,2884.4,2883.3,0.405504]
[1763656641802,0.129,2884.4,2883.2,0.90699264]
[1763656642003,0.129,2884.4,2883.4,0.405504]
[1763656642203,0.129,2884.4,2883.3,1.6616659]
[1763656642402,0.129,2884.4,2883.4,0.4822]
[1763656642992,0.129,2884.4,2883.4,1.38919264]
[1763656643310,0.129,2884.4,2883.5,0.90699264]
[1763656643488,0.129,2884.4,2883.6,0.4822]
[1763656643666,0.129,2884.4,2883.7,0.405504]
[1763656643870,0.129,2884.4,2883.6,0.4822]
[1763656644076,0.002,2885.7,2884.3,0.1966]
[1763656644467,0.002,2885.7,2884.1,0.4822]
[1763656644468,0.1801,2885.6,2884.1,0.1966]
[1763656644675,0.002,2885.7,2884.1,0.6788]
[1763656645306,0.1801,2885.6,2884.1,0.1966]
[1763656645513,0.03457336,2885.5,2883.6,0.4822]
[1763656645722,7.24084263,2885.4,2883.0,0.4832]
[1763656646017,0.1,2885.0,2883.0,0.4832]
[1763656646227,0.1801,2885.3,2883.1,0.90699264]
[1763656646393,0.002,2885.7,2883.2,0.4822]
[1763656646720,0.1,2885.2,2883.2,0.4822]
[1763656647014,0.03457336,2885.2,2883.2,0.4822]
[1763656647218,0.2801,2885.1,2883.2,0.4822]
[1763656647579,0.03457336,2885.0,2883.3,0.405504]
[1763656647779,0.03457336,2885.2,2883.3,0.405504]
[1763656648010,0.03457336,2885.2,2883.4,0.4822]
[1763656648392,0.21467336,2885.2,2883.4,0.4822]
[1763656648992,0.21467336,2885.2,2883.0,0.001]
[1763656648993,0.1801,2885.2,2883.5,0.4822]
[1763656649383,0.03457336,2885.1,2883.5,0.4822]
[1763656649582,0.1801,2885.2,2883.5,0.4822]
[1763656649809,0.03457336,2885.1,2883.5,0.4822]
[1763656650213,0.1801,2885.0,2883.2,0.4889]
[1763656650411,0.1801,2885.0,2883.1,0.90699264]
[1763656650618,0.1801,2885.0,2883.3,0.4889]
[1763656651197,0.03457336,2884.9,2883.3,0.4889]
[1763656651406,0.13457336,2884.9,2883.3,0.4889]
[1763656651635,0.31467336,2884.9,2883.3,0.4889]
[1763656652004,0.31467336,2884.9,2883.0,0.001]
[1763656652005,0.1801,2884.8,2883.0,0.001]
[1763656652322,0.1,2884.3,2883.0,0.001]
[1763656652538,0.16257336,2884.7,2883.0,0.001]
[1763656652539,0.1,2884.2,2883.0,0.001]
[1763656652685,0.1,2884.3,2883.0,0.001]
[1763656652914,0.34267336,2884.7,2883.1,0.4889]
[1763656653103,0.1,2884.5,2883.1,0.4889]
[1763656653303,0.03457336,2884.6,2883.1,0.4889]
[1763656653547,0.128,2884.7,2883.1,0.4889]
[1763656653732,0.128,2884.7,2883.2,0.39584479]
[1763656653918,0.128,2884.7,2883.3,0.44018648]
[1763656654122,0.002,2885.7,2884.6,0.1828]
[1763656654319,0.128,2885.5,2884.6,0.1828]
[1763656654843,0.128,2885.5,2884.4,0.4889]
[1763656655045,0.03457336,2885.4,2883.8,0.1828]
[1763656655250,0.03457336,2885.3,2883.8,0.1828]
[1763656655414,0.03457336,2885.3,2883.5,0.4889]
[1763656655415,0.13457336,2885.3,2883.5,0.4889]
[1763656655753,0.1801,2885.2,2883.5,0.4889]
[1763656656139,0.128,2885.5,2883.5,0.4889]
[1763656656140,0.1272,2885.5,2883.6,0.405504]
[1763656656354,0.1272,2885.5,2884.1,7.24084263]
[1763656656516,0.1272,2885.5,2884.2,2.5254809]
[1763656656850,0.1272,2885.5,2884.5,0.405504]
[1763656657168,0.1272,2885.5,2884.4,0.405504]
[1763656657453,0.1272,2885.5,2884.5,0.4889]
[1763656658742,0.1272,2885.5,2884.5,1.39589264]
[1763656658948,0.002,2885.7,2885.4,0.1856]
[1763656659318,0.002,2885.7,2885.5,0.4966]
[1763656659540,0.86760576,2887.8,2885.5,0.4966]
[1763656659541,0.13,2887.7,2885.6,0.405504]
[1763656659746,0.13,2887.7,2885.9,1.31249664]
[1763656659907,0.13,2887.7,2885.7,0.405504]
[1763656660109,0.002,2885.8,2885.7,0.405504]
[1763656660334,0.13,2887.7,2885.8,2.38434]
[1763656660579,0.13,2887.7,2886.2,0.405504]
[1763656660738,0.002,2886.1,2886.0,0.405504]
[1763656660938,0.002,2886.1,2885.9,0.3286444]
[1763656661178,0.002,2886.1,2885.7,0.90699264]
[1763656661381,0.002,2886.1,2885.5,1.80909664]
[1763656661679,0.002,2886.1,2885.6,0.405504]
[1763656661840,0.002,2886.1,2885.7,0.4966]
[1763656662047,0.13,2887.7,2886.0,0.405504]
[1763656662281,0.13,2887.7,2886.2,0.405504]
[1763656662648,0.22267336,2887.6,2885.9,0.4966]
[1763656662874,0.13,2887.7,2886.1,0.405504]
[1763656663078,0.13,2887.7,2886.3,3.87006212]
[1763656663383,0.13,2887.7,2886.4,0.52736548]
[1763656663584,0.13,2887.7,2886.5,0.405504]
[1763656663883,0.22267336,2887.6,2885.9,0.4966]
[1763656664086,0.1881,2887.6,2885.4,0.6822]
[1763656664303,0.1881,2887.6,2884.8,0.1856]
[1763656664304,7.24084263,2887.3,2884.8,0.6822]
[1763656664588,0.1,2886.7,2884.8,0.6822]
[1763656664801,0.03457336,2886.6,2884.4,0.4966]
[1763656664940,0.03457336,2886.6,2883.7,3.65049622]
[1763656664941,7.24084263,2886.3,2883.7,3.65049622]
[1763656665142,0.16257336,2886.2,2883.8,0.4966]
[1763656665335,0.16257336,2886.2,2884.1,0.90699264]
[1763656665561,0.16257336,2886.2,2883.9,0.90699264]
[1763656665562,0.2881,2886.1,2883.9,0.90699264]
[1763656665773,0.03457336,2886.0,2884.0,0.4966]
[1763656665972,0.22267336,2886.0,2884.0,0.4966]
[1763656666162,0.128,2886.2,2884.1,0.03467286]
[1763656666484,0.405504,2886.0,2883.7,0.1828]
[1763656666799,0.1,2885.7,2883.7,0.1828]
[1763656667008,0.1,2885.6,2883.7,0.6794]
[1763656667174,0.1881,2885.8,2883.7,0.6794]
[1763656667378,0.1881,2885.8,2883.8,0.4966]
[1763656667699,0.1,2885.7,2883.8,0.50542092]
[1763656667902,0.1881,2885.6,2883.9,0.4966]
[1763656668507,0.1881,2885.6,2884.0,0.405504]
[1763656668861,0.1881,2885.9,2884.1,0.4966]
[1763656669066,0.1881,2885.9,2884.2,0.405504]
[1763656669466,0.1881,2885.9,2884.1,0.4966]
[1763656669668,0.1881,2885.9,2883.7,0.1828]
[1763656669868,0.1,2885.8,2883.8,0.4966]
[1763656670379,0.1,2885.8,2883.2,7.24084263]
[1763656670380,0.90699264,2885.5,2883.2,0.4966]
[1763656670716,0.405504,2885.3,2883.2,0.4966]
[1763656670931,0.405504,2885.3,2881.9,0.4966]
[1763656670932,0.1881,2883.3,2881.9,0.4966]
[1763656672304,0.1,2882.8,2881.0,0.00653696]
[1763656672491,0.1,2882.6,2881.0,0.00653696]
[1763656672804,0.1871,2882.5,2881.0,0.00653696]
[1763656673019,0.1,2882.3,2881.0,0.00653696]
[1763656673167,0.1871,2882.2,2881.0,0.00653696]
[1763656673368,0.128,2882.1,2881.0,0.00653696]
[1763656674888,0.128,2882.1,2881.0,0.50313696]
[1763656675196,0.128,2882.1,2881.0,0.00653696]
[1763656676383,0.128,2882.1,2881.0,0.50313696]
[1763656677109,0.128,2882.1,2881.2,3.47077606]
[1763656677322,0.128,2882.1,2881.3,0.73470993]
[1763656677605,0.128,2882.1,2881.0,0.50313696]
[1763656677606,0.128,2882.1,2881.1,0.4966]
[1763656678512,0.128,2882.1,2881.0,0.00753696]
[1763656679392,0.128,2882.1,2881.1,0.4966]
[1763656680188,0.1272,2882.1,2881.1,0.4966]
[1763656680390,0.1272,2882.1,2881.0,0.00753696]
[1763656680632,0.1871,2882.0,2881.0,0.00753696]
[1763656681021,0.1,2881.9,2881.0,0.00753696]
[1763656681319,0.1871,2882.0,2881.0,0.00753696]
[1763656681536,0.1272,2882.1,2881.0,0.00753696]
[1763656682024,0.1272,2882.1,2881.1,0.03470896]
[1763656682189,0.1272,2882.1,2881.2,0.40098629]
[1763656682389,0.1272,2882.1,2881.2,0.89758629]
[1763656682582,0.1272,2882.1,2881.3,0.6822]
[1763656682918,0.1272,2882.1,2881.0,0.00753696]
[1763656683122,0.1871,2882.0,2881.0,0.00753696]
[1763656683324,0.2871,2882.0,2881.0,0.00753696]
[1763656683484,0.1,2881.7,2881.0,0.00753696]
[1763656683977,0.1272,2882.1,2881.0,0.00753696]
[1763656683978,0.1871,2881.6,2881.0,0.00753696]
[1763656684181,0.1272,2882.1,2881.0,0.00753696]
[1763656684421,0.22167336,2882.0,2881.0,0.00753696]
[1763656684719,0.90699264,2881.8,2881.0,0.00753696]
[1763656684907,0.405504,2881.6,2881.0,0.00753696]
[1763656685076,6.1814462,2881.4,2881.0,0.00753696]
[1763656685284,0.1871,2881.6,2881.0,0.00753696]
[1763656685684,6.1814462,2880.8,2880.0,1.60773486]
[1763656685882,0.128,2880.7,2880.0,1.60773486]
[1763656686624,0.1871,2880.6,2880.0,1.60773486]
[1763656686808,0.1,2880.5,2880.0,1.60773486]
[1763656687012,6.1814462,2880.5,2880.0,1.60773486]
[1763656687325,1.09409264,2880.4,2878.2,0.1856]
[1763656687620,1.09409264,2880.4,2878.3,0.4966]
[1763656687831,0.533504,2880.7,2878.2,0.6822]
[1763656687832,0.1,2880.1,2878.2,0.6822]
[1763656688030,0.1,2880.0,2878.3,0.4966]
[1763656688248,3.299019,2879.9,2876.7,0.2]
[1763656688438,0.405504,2879.6,2875.9,0.001393]
[1763656688642,0.1,2878.1,2876.0,0.452]
[1763656688921,0.129,2878.0,2876.0,3.92905146]
[1763656689127,0.129,2878.0,2875.9,0.001393]
[1763656689335,6.1814462,2877.4,2875.9,0.001393]
[1763656689536,0.1,2877.1,2875.9,0.001393]
[1763656689685,0.1,2877.2,2875.9,0.001393]
[1763656689896,1.05111639,2877.0,2875.9,0.001393]
[1763656690086,0.129,2877.8,2876.0,0.452]
[1763656690334,0.129,2877.8,2876.1,0.4402733]
[1763656690541,0.129,2877.8,2876.0,0.452]
[1763656691103,6.1814462,2879.5,2876.2,0.405504]
[1763656691342,6.3114462,2879.4,2876.4,1.31249664]
[1763656691542,0.13,2879.4,2876.8,0.405504]
[1763656691706,0.13,2879.4,2877.1,1.31249664]
[1763656691905,0.13,2879.9,2877.5,0.405504]
[1763656692133,0.13,2879.9,2877.0,4.63]
[1763656692134,0.13,2879.9,2877.9,0.90699264]
[1763656692336,0.13,2879.9,2877.2,1.11965217]
[1763656692337,6.1814462,2879.3,2877.2,0.2]
[1763656692507,0.61814462,2879.2,2877.3,0.452]
[1763656692704,0.23,2879.9,2877.3,0.452]
[1763656692931,0.1,2879.5,2877.4,0.405504]
[1763656693137,6.1814462,2879.8,2877.2,0.2]
[1763656693138,0.1,2879.8,2877.6,6.5869502]
[1763656693318,0.13,2879.9,2877.5,0.452]
[1763656693319,0.16457336,2879.9,2877.8,0.405504]
[1763656693520,0.13,2879.9,2877.8,0.405504]
[1763656693728,0.1,2879.7,2877.6,0.405504]
[1763656693948,0.1,2879.7,2877.4,0.90699264]
[1763656693949,0.03457336,2879.7,2877.9,0.452]
[1763656694107,6.3114462,2879.9,2878.0,0.405504]
[1763656694108,0.13,2879.9,2878.0,0.405504]
[1763656694541,0.03457336,2879.8,2878.1,0.452]
[1763656694756,0.23,2879.9,2878.1,0.452]
[1763656694757,0.13,2879.9,2878.2,0.405504]
[1763656695122,0.13,2879.9,2878.4,0.405504]
[1763656695347,0.13,2879.9,2878.4,0.90699264]
[1763656695556,0.13,2879.9,2878.3,0.452]
[1763656695557,0.1,2879.6,2878.3,0.452]
[1763656695768,0.1,2879.6,2877.7,0.452]
[1763656695769,0.03457336,2879.5,2877.7,0.452]
[1763656695927,0.1,2878.7,2877.2,0.652]
[1763656696248,0.13,2878.6,2876.5,0.452]
[1763656696456,0.13,2878.6,2877.1,0.652]
[1763656696605,0.13,2878.6,2878.0,0.001]
[1763656697152,0.13,2878.6,2878.1,0.452]
[1763656697322,0.13,2878.6,2878.3,0.405504]
[1763656697518,0.13,2878.6,2878.2,0.452]
[1763656698068,0.13,2878.6,2878.0,0.001]
[1763656698069,0.13,2878.6,2878.0,0.406504]
[1763656698269,0.13,2878.6,2878.1,0.94173778]
[1763656698559,0.13,2878.6,2878.3,0.405504]
[1763656698717,0.13,2878.6,2878.2,0.452]
[1763656699620,0.13,2878.6,2878.0,0.001]
[1763656700342,0.04637027,2878.6,2878.0,0.001]
[1763656701265,0.04637027,2878.6,2877.3,0.405504]
[1763656701266,6.1814462,2878.1,2874.9,0.69331029]
[1763656701431,6.1814462,2878.1,2876.4,0.452]
[1763656701432,0.61814462,2878.0,2876.4,0.452]
[1763656701634,0.131,2878.1,2876.4,0.452]
[1763656701881,0.231,2878.1,2876.4,0.452]
[1763656702062,0.131,2878.1,2876.4,0.452]
[1763656702794,0.1,2878.0,2876.4,0.452]
[1763656702957,0.131,2878.1,2876.4,0.452]
[1763656703362,0.131,2878.1,2876.5,0.90699264]
[1763656703572,0.131,2878.1,2876.7,0.405504]
[1763656703797,0.131,2878.1,2877.1,1.31249664]
[1763656704307,0.131,2878.1,2877.2,0.652]
[1763656704479,0.1302,2878.1,2877.2,0.652]
[1763656705281,0.1302,2878.1,2877.3,0.452]
[1763656707264,0.1302,2878.1,2877.4,0.405504]
[1763656707466,0.1302,2878.1,2877.5,0.03475238]
[1763656707672,1.14924373,2880.4,2880.2,0.2]
[1763656707958,5.71999627,2882.3,2880.2,0.2]
[1763656707959,0.4573,2882.2,2880.4,0.405504]
[1763656708172,0.1949,2880.4,2879.7,0.9243663]
[1763656708387,0.1949,2881.7,2880.0,6.1814462]
[1763656708596,0.1949,2881.7,2879.2,0.17789086]
[1763656708597,0.5923,2883.0,2880.1,1.52513726]
[1763656708746,0.5923,2883.0,2880.2,0.90699264]
[1763656708747,3.39998725,2882.9,2880.2,0.90699264]
[1763656708956,3.39998725,2882.9,2879.7,0.9243663]
[1763656708957,0.135,2883.0,2881.2,1.31249664]
[1763656709305,0.135,2883.0,2880.0,0.9243663]
[1763656709306,0.135,2883.0,2881.8,0.405504]
[1763656710249,0.1949,2882.9,2880.4,0.9243663]
[1763656710469,0.03457336,2882.8,2881.0,1.31249664]
[1763656710605,0.03457336,2882.8,2880.4,6.1814462]
[1763656710606,0.4573,2882.7,2880.4,6.1814462]
[1763656710812,0.03457336,2882.6,2880.5,1.52513726]
[1763656711040,0.1,2882.4,2880.5,1.52513726]
[1763656711241,0.1,2882.4,2878.9,5.62473261]
[1763656711242,0.03457336,2882.3,2880.1,6.1814462]
[1763656711509,0.5573,2882.6,2880.6,6.1814462]
[1763656711719,0.13457336,2882.6,2880.2,6.1814462]
[1763656712032,0.13457336,2882.6,2879.3,3.473018]
[1763656712033,0.1,2881.8,2879.7,6.1814462]
[1763656712352,0.1,2881.6,2879.8,0.61814462]
[1763656712561,0.03457336,2881.6,2879.8,0.61814462]
[1763656712722,0.4956,2881.9,2880.3,6.1814462]
[1763656712927,0.03457336,2881.8,2879.8,6.79959082]
[1763656713239,0.4956,2881.9,2880.3,6.1814462]
[1763656713445,0.4956,2881.9,2878.7,0.9243663]
[1763656713446,0.135,2882.2,2879.4,0.9243663]
[1763656713657,0.4956,2881.9,2880.4,1.31249664]
[1763656713954,0.53017336,2881.9,2880.4,1.31249664]
[1763656714249,0.4956,2881.9,2880.4,1.31249664]
[1763656714462,0.4956,2881.9,2880.4,2.06189092]
[1763656715016,0.4956,2881.9,2880.9,0.405504]
[1763656715540,0.002,2881.7,2880.9,0.405504]
[1763656716252,0.002,2881.7,2880.7,1.31249664]
[1763656717020,0.002,2881.7,2879.7,6.1814462]
[1763656717021,0.4956,2881.6,2879.7,6.1814462]
[1763656717333,0.4956,2881.6,2879.8,0.61814462]
[1763656717851,0.1,2881.1,2879.2,6.1814462]
[1763656718021,0.1,2881.4,2879.3,0.90699264]
[1763656718229,2.134,2880.9,2878.2,0.2]
[1763656718527,0.135,2880.8,2878.3,6.1814462]
[1763656718730,0.03457336,2880.7,2878.9,0.90699264]
[1763656718931,0.4579,2880.7,2878.9,0.90699264]
[1763656719556,0.4579,2880.8,2879.3,6.1814462]
[1763656719757,0.1922,2881.0,2879.4,0.90699264]
[1763656719758,0.49247336,2880.7,2879.4,0.90699264]
[1763656719928,0.49247336,2880.7,2878.9,0.90699264]
[1763656720133,0.59247336,2880.7,2878.9,0.70884388]
[1763656720330,0.49247336,2880.7,2879.2,0.90699264]
[1763656720565,0.4579,2880.7,2879.3,0.405504]
[1763656720734,0.4579,2880.7,2878.4,0.63814462]
[1763656720735,0.03457336,2880.6,2878.4,0.63814462]
[1763656720940,0.1,2880.5,2878.3,6.1814462]
[1763656721252,0.03457336,2880.4,2878.3,6.1814462]
[1763656721466,0.90699264,2880.4,2877.8,6.1814462]
[1763656721805,0.5449,2877.4,2876.7,0.9243663]
[1763656721945,0.136,2877.3,2876.4,0.001]
[1763656722148,0.5449,2877.4,2876.4,0.001]
[1763656723530,1.0028,2877.4,2876.4,0.001]
[1763656724486,0.4579,2877.3,2876.4,0.001]
[1763656725753,0.1,2877.2,2876.4,0.001]
[1763656725954,0.4579,2877.3,2876.4,0.001]
[1763656727460,0.5579,2877.3,2876.4,0.001]
[1763656727799,0.1981,2877.9,2876.4,0.001]
[1763656727800,0.4579,2877.4,2876.4,0.001]
[1763656728296,0.4571,2877.4,2876.4,0.001]
[1763656728900,0.1981,2877.9,2876.4,0.001]
[1763656729069,0.1981,2877.9,2876.5,0.405504]
[1763656729401,0.136,2878.0,2876.7,7.49394284]
[1763656729573,0.136,2878.0,2876.9,0.405504]
[1763656729892,1.252,2879.3,2877.3,1.31249664]
[1763656730193,0.135,2879.0,2877.4,0.405504]
[1763656730408,0.4579,2880.8,2878.9,0.90699264]
[1763656730568,0.5929,2880.8,2879.0,1.11434788]
[1763656730913,0.5929,2880.8,2879.0,1.57094788]
[1763656731063,0.135,2880.8,2879.4,1.31249664]
[1763656731258,0.002,2881.7,2879.6,0.405504]
[1763656731509,0.4579,2881.6,2879.9,1.31249664]
[1763656731801,0.4579,2881.6,2879.9,2.06189092]
[1763656732385,0.137,2881.7,2879.9,2.06189092]
[1763656732386,0.137,2881.7,2880.4,0.405504]
[1763656732682,0.137,2881.7,2880.4,1.31249664]
[1763656733024,0.137,2881.7,2880.6,0.405504]
[1763656733181,0.5949,2881.7,2880.2,0.405504]
[1763656733384,0.5949,2881.7,2879.2,0.90699264]
[1763656733385,2.3717,2880.0,2877.6,1.2324884]
[1763656733645,0.1,2879.5,2877.2,0.1675]
[1763656733924,2.01385402,2879.9,2877.8,6.1814462]
[1763656733925,0.137,2879.9,2877.8,6.1814462]
[1763656734087,0.49247336,2879.8,2877.9,0.90699264]
[1763656734720,0.1,2879.7,2877.8,6.1814462]
[1763656735023,0.4579,2879.6,2877.9,1.57079726]
[1763656735244,0.13457336,2879.5,2877.4,0.001]
[1763656735529,0.13457336,2879.5,2877.7,6.1814462]
[1763656735530,0.4579,2879.5,2877.7,6.1814462]
[1763656735822,0.4579,2879.5,2877.9,0.405504]
[1763656736039,0.4579,2879.5,2877.4,0.001]
[1763656736319,0.4579,2879.5,2877.5,0.4566]
[1763656736617,0.4579,2879.5,2877.6,1.36245137]
[1763656737021,0.4579,2879.5,2877.8,0.405504]
[1763656737525,0.4579,2879.5,2878.1,0.351014]
[1763656737830,0.03457336,2879.4,2877.6,1.36245137]
[1763656737986,0.03457336,2879.4,2877.7,0.2269444]
[1763656737987,0.4579,2879.3,2877.7,0.2269444]
[1763656738187,0.4579,2879.3,2877.4,6.1824462]
[1763656738709,0.4579,2879.3,2877.5,1.36359264]
[1763656738914,0.656,2879.3,2877.6,0.4566]
[1763656739114,0.1981,2879.7,2878.0,0.90699264]
[1763656739485,0.1981,2879.7,2878.1,0.405504]
[1763656739683,0.656,2879.7,2878.2,0.17690966]
[1763656740077,0.656,2879.7,2878.3,0.405504]
[1763656740285,0.137,2879.8,2878.6,0.405504]
[1763656740642,0.4579,2881.0,2879.7,0.1667]
[1763656741117,0.137,2881.4,2879.8,1.76909664]
[1763656741336,0.4579,2881.3,2879.7,0.1667]
[1763656741505,0.49247336,2881.3,2879.3,0.405504]
[1763656741680,0.1,2881.0,2879.3,0.405504]
[1763656741879,0.1,2880.8,2879.3,0.405504]
[1763656742099,0.1,2881.2,2879.3,0.862104]
[1763656742333,0.03457336,2881.1,2879.3,0.405504]
[1763656742485,0.1,2880.7,2879.3,0.405504]
[1763656742792,0.1,2880.7,2878.8,1.36359264]
[1763656742793,0.4579,2880.6,2878.9,0.405504]
[1763656742980,0.13457336,2880.5,2878.6,0.1667]
[1763656743181,0.4579,2880.6,2878.7,8.12296687]
[1763656743426,0.4579,2880.6,2878.9,0.405504]
[1763656743582,0.4579,2880.6,2879.1,0.405504]
[1763656743955,0.4579,2880.6,2878.8,5.66618166]
[1763656743956,0.03457336,2881.3,2879.0,11.13979514]
[1763656744106,0.54466326,2881.3,2879.6,1.31249664]
[1763656744280,0.54466326,2881.3,2879.5,7.26086287]
[1763656744480,1.00256326,2881.3,2879.7,0.405504]
[1763656744710,0.4579,2881.3,2879.7,0.405504]
[1763656745018,0.137,2881.4,2879.9,0.405504]
[1763656745223,0.137,2881.4,2880.1,1.31249664]
[1763656745447,0.002,2881.7,2880.1,1.31249664]
[1763656745448,0.002,2881.7,2880.6,1.31249664]
[1763656745600,0.002,2881.7,2880.4,0.405504]
[1763656746439,0.002,2881.7,2880.6,0.405504]
[1763656746624,0.002,2881.7,2880.2,15.06213594]
[1763656746625,0.002,2881.7,2881.0,0.405504]
[1763656747079,0.002,2881.7,2880.1,0.136]
[1763656747080,7.26086287,2881.1,2878.6,2.45957183]
[1763656747232,0.72608629,2881.0,2878.4,0.4566]
[1763656747578,0.1,2880.4,2878.4,0.4566]
[1763656747725,0.49247336,2880.3,2878.4,0.4566]
[1763656748136,1.399466,2880.3,2877.7,0.4566]
[1763656748329,0.1,2879.3,2877.2,0.1675]
[1763656748573,0.1,2878.8,2877.2,0.1675]
[1763656748957,0.4819,2879.1,2877.5,0.4859]
[1763656749140,0.3275,2879.2,2877.5,0.4859]
[1763656749348,0.3275,2879.2,2877.6,0.77477629]